fUSD/lending_fUSD_20250414
["ID","MTS","AMOUNT","RATE_DAILY","PERIOD"]
[358019657,1744654252514,-500.0,0.00017998,2]
[358019658,1744654252526,-500.0,0.00017998,2]
[358019659,1744654252536,-500.0,0.00017998,2]
[358019661,1744654252546,-500.0,0.00017998,2]
[358019662,1744654252556,-500.0,0.00017998,2]
[358019663,1744654252565,-553.72,0.00017998,2]
[358019664,1744654252575,-500.0,0.00017998,2]
[358019665,1744654252587,-500.0,0.00017998,2]
[358019667,1744654252597,-500.0,0.00017998,2]
[358019668,1744654252607,-500.0,0.00017998,2]
[358019669,1744654252616,-222.81,0.00017998,2]
[358019670,1744654252626,-500.0,0.00017998,2]
[358019671,1744654252636,-500.0,0.00017998,2]
[358019673,1744654252646,-280.05,0.00017998,2]
[358019674,1744654252656,-500.0,0.00017998,2]
[358019675,1744654252667,-500.0,0.00017998,2]
[358019676,1744654252677,-500.0,0.00017998,2]
[358019677,1744654252687,-500.0,0.00017998,2]
[358019679,1744654252698,-500.0,0.00017998,2]
[358019680,1744654252708,-500.0,0.00017998,2]
[358019681,1744654252718,-500.0,0.00017998,2]
[358019682,1744654252728,-500.0,0.00017998,2]
[358019683,1744654252739,-500.0,0.00017998,2]
[358019685,1744654252749,-500.0,0.00017998,2]
[358019686,1744654252760,-500.0,0.00017998,2]
[358019687,1744654252770,-500.0,0.00017998,2]
[358019688,1744654252780,-587.2,0.00017998,2]
[358019689,1744654252791,-500.0,0.00017998,2]
[358019690,1744654252801,-500.0,0.00017998,2]
[358019692,1744654252811,-500.0,0.00017998,2]
[358019693,1744654252821,-500.0,0.00017998,2]
[358019694,1744654252831,-500.0,0.00017998,2]
[358019695,1744654252841,-500.0,0.00017998,2]
[358019696,1744654252851,-151.0,0.00017998,2]
[358019698,1744654252861,-151.0,0.00017998,2]
[358019699,1744654252871,-151.0,0.00017998,2]
[358019700,1744654252880,-183.773614,0.00017998,2]
[358019701,1744654252890,-151.0,0.00017998,2]
[358019702,1744654252900,-480.15,0.00017998,2]
[358019704,1744654252910,-183.773614,0.00017998,2]
[358019705,1744654252920,-95063.49,0.00017998,2]
[358019706,1744654252931,-500.0,0.00017998,2]
[358019707,1744654252941,-95063.49,0.00017998,2]
[358019708,1744654252950,-500.0,0.00017998,2]
[358019709,1744654252960,-500.0,0.00017998,2]
[358019711,1744654252970,-95063.49,0.00017998,2]
[358019712,1744654252981,-500.0,0.00017998,2]
[358019713,1744654252991,-95063.49,0.00017998,2]
[358019714,1744654253001,-95063.49,0.00017998,2]
[358019715,1744654253011,-500.0,0.00017998,2]
[358019717,1744654253021,-500.0,0.00017998,2]
[358019718,1744654253031,-2720.1008644,0.00017998,2]
[358019723,1744654253235,-500.0,0.00017957,2]
[358019724,1744654253246,-4897.5121412,0.00017998,2]
[358019725,1744654253258,-265.11770204,0.00017998,2]
[358019726,1744654253269,-1245.53359975,0.00017998,2]
[358019733,1744654253568,-971.4217226,0.00017998,2]
[358019734,1744654253582,-390.32439995,0.00017998,2]
[358019738,1744654253713,-12.11508781,0.00017983,2]
[358019739,1744654253728,-487.88491219,0.00017983,2]
[358019740,1744654253739,-258.61520042,0.00017998,2]
[358019743,1744654253833,-500.0,0.00017881,2]
[358019744,1744654253844,-500.0,0.00017881,2]
[358019745,1744654253855,-285.30244676,0.00017982,2]
[358019778,1744654255239,-214.69755324,0.00017982,2]
[358019779,1744654255248,-435.76405471,0.00017995,2]
[358019780,1744654255259,-64.23594529,0.00017995,2]
[358019781,1744654255270,-200.66,0.00017995,2]
[358019783,1744654255280,-117.78010223,0.00017998,2]
[358019787,1744654255413,-500.0,0.00017881,2]
[358019788,1744654255423,-277.18844005,0.00017899,2]
[358019789,1744654255435,-8326.67401535,0.00017899,2]
[358019791,1744654255445,-500.0,0.00017982,2]
[358019792,1744654255454,-12743.61564252,0.00017998,2]
[358019793,1744654255465,-4147.79842036,0.00017998,2]
[358019794,1744654255476,-432.87861928,0.00017998,2]
[358020401,1744654284106,2457.99,0.00017113,2]
[358023253,1744654394477,507.09,0.00016979,2]
[358023254,1744654547788,821.11,0.00015011,2]
[358023255,1744654547991,821.11,0.00017275,2]
[358023256,1744654558983,250.0,0.00016933,2]
[358023257,1744654613629,1853.99,0.00016924,2]
[358023258,1744654613835,1853.99,0.00016929,2]
[358023259,1744654614092,1148.03863897,0.00016933,2]
[358023260,1744654614116,705.95136103,0.00016933,2]
[358023261,1744654614306,1853.99,0.00016938,2]
[358023262,1744654614715,1853.99,0.00016942,2]
[358023263,1744654614798,1853.99,0.00016947,2]
[358023264,1744654615214,1853.99,0.00016951,2]
[358023265,1744654615664,1853.99,0.00016955,2]
[358023266,1744654615901,24.09863897,0.0001696,2]
[358023267,1744654615924,1829.89136103,0.0001696,2]
[358023268,1744654616124,1853.99,0.00016964,2]
[358023269,1744654616384,1853.99,0.00016969,2]
[358023270,1744654616600,1853.99,0.00016973,2]
[358023271,1744654616833,1853.99,0.00016978,2]
[358023272,1744654617232,754.14863897,0.00016982,2]
[358023273,1744654617255,1099.84136103,0.00016982,2]
[358023274,1744654617435,1853.99,0.00016987,2]
[358023275,1744654617716,1853.99,0.00016991,2]
[358023276,1744654617924,1853.99,0.00016996,2]
[358023277,1744654618146,1853.99,0.00017,2]
[358023278,1744654618909,1484.19863897,0.00017005,2]
[358023279,1744654618932,369.79136103,0.00017005,2]
[358023280,1744654619185,1853.99,0.00017009,2]
[358023281,1744654656332,221.62,0.00016929,2]
[358023282,1744654726458,7554.59863897,0.00016946,2]
[358023283,1744654726480,10000.0,0.00016946,2]
[358023284,1744654726502,6345.40136103,0.00016946,2]
[358023285,1744654754021,200.0,0.00016948,2]
[358023286,1744654840690,164.68,0.00016934,2]
[358023287,1744654922560,3289.91863897,0.00016943,2]
[358023288,1744654922583,2800.86136103,0.00016943,2]
[358023289,1744654943231,1000.0,0.00016933,2]
[358023290,1744655065959,1276.03992026,0.000167,2]
[358025198,1744655182631,5161.226,0.00019,10]
[358025563,1744655212970,288.33,0.00016885,2]
[358025750,1744655222044,175.5,0.00017391,2]
[358027466,1744655368169,-162.14,0.00017621,2]
[358027467,1744655368190,-113.3086,0.0001771,2]
[358027471,1744655394796,200.0,0.0001697,2]
[358027475,1744655414392,310.8,0.00016947,2]
[358027481,1744655432133,-2041.10318747,0.00017682,2]
[358027482,1744655432143,-2041.08,0.00017695,2]
[358027483,1744655432153,-4082.16,0.00017697,2]
[358027484,1744655432163,-300.0,0.00017697,2]
[358027485,1744655432173,-300.0,0.00017697,2]
[358027486,1744655432183,-6123.24,0.00017698,2]
[358027487,1744655432192,-585.41635552,0.0001778,2]
[358027488,1744655432239,-1098.77768405,0.0001778,2]
[358027489,1744655432248,-691.1832311,0.00017873,2]
[358027490,1744655432257,-691.18323102,0.00017876,2]
[358027491,1744655432266,-228.0,0.00017879,2]
[358027492,1744655432276,-691.18323102,0.00017879,2]
[358027493,1744655432285,-500.0,0.0001788,2]
[358027494,1744655432294,-500.0,0.0001788,2]
[358027495,1744655432303,-500.0,0.0001788,2]
[358027496,1744655432313,-500.0,0.0001788,2]
[358027497,1744655432322,-405.92569286,0.0001788,2]
[358027498,1744655432332,-500.0,0.0001788,2]
[358027499,1744655432342,-500.0,0.0001788,2]
[358027501,1744655432351,-500.0,0.0001788,2]
[358027503,1744655432360,-500.0,0.0001788,2]
[358027504,1744655432370,-500.0,0.0001788,2]
[358027505,1744655432379,-500.0,0.0001788,2]
[358027506,1744655432388,-500.0,0.0001788,2]
[358027507,1744655432398,-500.0,0.0001788,2]
[358027508,1744655432407,-500.0,0.0001788,2]
[358027509,1744655432416,-500.0,0.0001788,2]
[358027510,1744655432426,-500.0,0.0001788,2]
[358027511,1744655432435,-500.0,0.0001788,2]
[358027512,1744655432443,-500.0,0.0001788,2]
[358027513,1744655432452,-500.0,0.0001788,2]
[358027515,1744655432461,-500.0,0.0001788,2]
[358027516,1744655432471,-500.0,0.0001788,2]
[358027517,1744655432481,-500.0,0.0001788,2]
[358027518,1744655432490,-500.0,0.0001788,2]
[358027519,1744655432499,-500.0,0.0001788,2]
[358027520,1744655432508,-500.0,0.0001788,2]
[358027521,1744655432518,-500.0,0.0001788,2]
[358027522,1744655432527,-500.0,0.0001788,2]
[358027523,1744655432536,-500.0,0.0001788,2]
[358027524,1744655432545,-500.0,0.0001788,2]
[358027525,1744655432554,-500.0,0.0001788,2]
[358027526,1744655432564,-500.0,0.0001788,2]
[358027527,1744655432573,-500.0,0.0001788,2]
[358027528,1744655432582,-500.0,0.0001788,2]
[358027529,1744655432591,-539.76967029,0.0001788,2]
[358027530,1744655432602,-500.0,0.0001788,2]
[358027531,1744655432613,-500.0,0.0001788,2]
[358027532,1744655432622,-500.0,0.0001788,2]
[358027533,1744655432631,-500.0,0.0001788,2]
[358027534,1744655432642,-500.0,0.0001788,2]
[358027535,1744655432651,-500.0,0.0001788,2]
[358027536,1744655432660,-500.0,0.0001788,2]
[358027537,1744655432669,-500.0,0.0001788,2]
[358027538,1744655432679,-500.0,0.0001788,2]
[358027539,1744655432689,-500.0,0.0001788,2]
[358027540,1744655432698,-500.0,0.0001788,2]
[358027541,1744655432707,-500.0,0.0001788,2]
[358027542,1744655432716,-500.0,0.0001788,2]
[358027543,1744655432726,-500.0,0.0001788,2]
[358027544,1744655432735,-500.0,0.0001788,2]
[358027545,1744655432744,-500.0,0.0001788,2]
[358027546,1744655432754,-500.0,0.0001788,2]
[358027547,1744655432763,-500.0,0.0001788,2]
[358027548,1744655432773,-500.0,0.0001788,2]
[358027549,1744655432782,-500.0,0.0001788,2]
[358027550,1744655432792,-500.0,0.0001788,2]
[358027551,1744655432801,-500.0,0.0001788,2]
[358027552,1744655432810,-500.0,0.0001788,2]
[358027553,1744655432819,-500.0,0.0001788,2]
[358027554,1744655432829,-500.0,0.0001788,2]
[358027555,1744655432838,-500.0,0.0001788,2]
[358027556,1744655432847,-500.0,0.0001788,2]
[358027557,1744655432857,-500.0,0.0001788,2]
[358027558,1744655432867,-500.0,0.0001788,2]
[358027559,1744655432876,-624.7,0.0001788,2]
[358027560,1744655432886,-500.0,0.0001788,2]
[358027561,1744655432895,-500.0,0.0001788,2]
[358027562,1744655432904,-500.0,0.0001788,2]
[358027563,1744655432914,-500.0,0.0001788,2]
[358027564,1744655432923,-500.0,0.0001788,2]
[358027565,1744655432932,-500.0,0.0001788,2]
[358027566,1744655432941,-500.0,0.0001788,2]
[358027567,1744655432950,-500.0,0.0001788,2]
[358027568,1744655432959,-500.0,0.0001788,2]
[358027569,1744655432969,-500.0,0.0001788,2]
[358027570,1744655432978,-500.0,0.0001788,2]
[358027571,1744655432987,-500.0,0.0001788,2]
[358027572,1744655432996,-500.0,0.0001788,2]
[358027573,1744655433006,-500.0,0.0001788,2]
[358027574,1744655433016,-500.0,0.0001788,2]
[358027575,1744655433026,-500.0,0.0001788,2]
[358027576,1744655433036,-500.0,0.0001788,2]
[358027577,1744655433046,-500.0,0.0001788,2]
[358027578,1744655433056,-500.0,0.0001788,2]
[358027579,1744655433065,-500.0,0.0001788,2]
[358027580,1744655433074,-500.0,0.0001788,2]
[358027581,1744655433085,-500.0,0.0001788,2]
[358027582,1744655433094,-500.0,0.0001788,2]
[358027583,1744655433104,-500.0,0.0001788,2]
[358027584,1744655433115,-500.0,0.0001788,2]
[358027585,1744655433124,-500.0,0.0001788,2]
[358027586,1744655433134,-500.0,0.0001788,2]
[358027587,1744655433144,-533.58666719,0.0001788,2]
[358027588,1744655433154,-500.0,0.0001788,2]
[358027589,1744655433163,-500.0,0.0001788,2]
[358027590,1744655433173,-500.0,0.0001788,2]
[358027591,1744655433183,-500.0,0.0001788,2]
[358027592,1744655433192,-500.0,0.0001788,2]
[358027593,1744655433202,-500.0,0.0001788,2]
[358027594,1744655433211,-500.0,0.0001788,2]
[358027595,1744655433220,-500.0,0.0001788,2]
[358027596,1744655433230,-500.0,0.0001788,2]
[358027597,1744655433239,-500.0,0.0001788,2]
[358027598,1744655433248,-500.0,0.0001788,2]
[358027599,1744655433258,-500.0,0.0001788,2]
[358027600,1744655433267,-500.0,0.0001788,2]
[358027601,1744655433276,-500.0,0.0001788,2]
[358027602,1744655433287,-500.0,0.0001788,2]
[358027603,1744655433296,-500.0,0.0001788,2]
[358027604,1744655433306,-500.0,0.0001788,2]
[358027605,1744655433316,-500.0,0.0001788,2]
[358027606,1744655433325,-500.0,0.0001788,2]
[358027607,1744655433335,-500.0,0.0001788,2]
[358027608,1744655433344,-500.0,0.0001788,2]
[358027609,1744655433354,-500.0,0.0001788,2]
[358027610,1744655433364,-500.0,0.0001788,2]
[358027611,1744655433375,-500.0,0.0001788,2]
[358027612,1744655433386,-500.0,0.0001788,2]
[358027613,1744655433395,-500.0,0.0001788,2]
[358027614,1744655433405,-500.0,0.0001788,2]
[358027615,1744655433415,-500.0,0.0001788,2]
[358027616,1744655433424,-500.0,0.0001788,2]
[358027617,1744655433434,-500.0,0.0001788,2]
[358027618,1744655433443,-495.69059115,0.0001788,2]
[358027624,1744655438208,-4.30940885,0.0001788,2]
[358027625,1744655438218,-500.0,0.0001788,2]
[358027626,1744655438227,-97.46232361,0.0001788,2]
[358027627,1744655438369,-402.53767639,0.0001788,2]
[358027628,1744655438379,-500.0,0.0001788,2]
[358027629,1744655438389,-500.0,0.0001788,2]
[358027630,1744655438398,-2000.0,0.0001788,2]
[358027631,1744655438407,-500.0,0.0001788,2]
[358027632,1744655438417,-500.0,0.0001788,2]
[358027633,1744655438427,-500.0,0.0001788,2]
[358027634,1744655438436,-500.0,0.0001788,2]
[358027635,1744655438446,-525.19032362,0.0001788,2]
[358027636,1744655438455,-500.0,0.0001788,2]
[358027637,1744655438464,-500.0,0.0001788,2]
[358027638,1744655438478,-500.0,0.0001788,2]
[358027640,1744655438487,-500.0,0.0001788,2]
[358027642,1744655438497,-390.09816621,0.0001788,2]
[358027644,1744655438506,-500.0,0.00017881,2]
[358027646,1744655438517,-500.0,0.00017881,2]
[358027648,1744655438526,-500.0,0.00017881,2]
[358027651,1744655438536,-500.0,0.00017881,2]
[358027653,1744655438546,-500.0,0.00017881,2]
[358027654,1744655438555,-500.0,0.00017881,2]
[358027656,1744655438565,-500.0,0.00017881,2]
[358027658,1744655438574,-500.0,0.00017881,2]
[358027660,1744655438583,-500.0,0.00017881,2]
[358027662,1744655438593,-500.0,0.00017881,2]
[358027664,1744655438607,-500.0,0.00017881,2]
[358027666,1744655438616,-500.0,0.00017881,2]
[358027668,1744655438626,-500.0,0.00017881,2]
[358027670,1744655438636,-500.0,0.00017881,2]
[358027672,1744655438647,-500.0,0.00017881,2]
[358027674,1744655438656,-604.71640579,0.00017881,2]
[358027676,1744655438665,-500.0,0.00017881,2]
[358027678,1744655438676,-500.0,0.00017881,2]
[358027680,1744655438685,-500.0,0.00017881,2]
[358027682,1744655438694,-500.0,0.00017881,2]
[358027684,1744655438703,-421.08769807,0.00017881,2]
[358027686,1744655438712,-500.0,0.00017882,2]
[358027688,1744655438721,-500.0,0.00017882,2]
[358027690,1744655438730,-500.0,0.00017882,2]
[358027691,1744655438739,-500.0,0.00017882,2]
[358027693,1744655438748,-248.61643703,0.00017882,2]
[358027695,1744655438758,-292.55561021,0.00017882,2]
[358027697,1744655438768,-500.0,0.00017882,2]
[358027699,1744655438777,-500.0,0.00017882,2]
[358027701,1744655438786,-500.0,0.00017882,2]
[358027703,1744655438796,-500.0,0.00017882,2]
[358027705,1744655438805,-500.0,0.00017882,2]
[358027707,1744655438815,-500.0,0.00017882,2]
[358027709,1744655438823,-500.0,0.00017882,2]
[358027711,1744655438833,-500.0,0.00017882,2]
[358027713,1744655438842,-494.98204,0.00017882,2]
[358027715,1744655438851,-691.18323102,0.00017882,2]
[358027717,1744655438861,-223.0,0.00017883,2]
[358027719,1744655438870,-691.18323102,0.00017885,2]
[358027721,1744655438880,-1087.682,0.00017888,2]
[358027723,1744655438889,-691.18323102,0.00017888,2]
[358027725,1744655438898,-500.0,0.0001789,2]
[358027727,1744655438907,-500.0,0.0001789,2]
[358027729,1744655438916,-500.0,0.0001789,2]
[358027731,1744655438926,-500.0,0.0001789,2]
[358027733,1744655438936,-500.0,0.0001789,2]
[358027735,1744655438946,-500.0,0.0001789,2]
[358027736,1744655438956,-500.0,0.0001789,2]
[358027738,1744655438965,-500.0,0.0001789,2]
[358027740,1744655438975,-500.0,0.0001789,2]
[358027742,1744655438984,-500.0,0.0001789,2]
[358027744,1744655438994,-500.0,0.0001789,2]
[358027746,1744655439003,-500.0,0.0001789,2]
[358027748,1744655439013,-500.0,0.0001789,2]
[358027750,1744655439023,-500.0,0.0001789,2]
[358027752,1744655439032,-413.12741202,0.0001789,2]
[358027754,1744655439041,-265.00515297,0.0001789,2]
[358027756,1744655439050,-500.0,0.0001789,2]
[358027758,1744655439060,-644.75,0.0001789,2]
[358027760,1744655439069,-500.0,0.0001789,2]
[358027762,1744655439079,-500.0,0.0001789,2]
[358027764,1744655439088,-691.18323102,0.00017891,2]
[358027766,1744655439098,-12500.0,0.00017891,2]
[358027768,1744655439107,-12500.0,0.00017891,2]
[358027770,1744655439117,-201.23719771,0.00017895,2]
[358027772,1744655439127,-201.23719771,0.00017897,2]
[358027774,1744655439137,-2500.0,0.00017897,2]
[358027776,1744655439147,-2500.0,0.00017897,2]
[358027778,1744655439156,-160.54990921,0.00017899,2]
[358027780,1744655439166,-264.91033849,0.00017899,2]
[358027782,1744655439175,-5735.9083036,0.00017899,2]
[358027784,1744655439184,-274.29855192,0.00017899,2]
[358027786,1744655439193,-12500.0,0.000179,2]
[358027788,1744655439203,-1328.0,0.00017961,2]
[358027790,1744655439213,-173.394,0.00017961,2]
[358027792,1744655439223,-1175.24,0.0001797,2]
[358027794,1744655439232,-586.45897888,0.00017973,2]
[358027796,1744655439242,-500.0,0.00017973,2]
[358027798,1744655439252,-500.0,0.00017979,2]
[358027800,1744655439261,-500.0,0.0001798,2]
[358027802,1744655439271,-500.0,0.0001798,2]
[358027804,1744655439280,-814.99,0.0001798,2]
[358027806,1744655439289,-500.0,0.0001798,2]
[358027808,1744655439298,-500.0,0.0001798,2]
[358027810,1744655439307,-500.0,0.0001798,2]
[358027812,1744655439316,-500.0,0.0001798,2]
[358027814,1744655439326,-500.0,0.0001798,2]
[358027816,1744655439336,-500.0,0.0001798,2]
[358027818,1744655439345,-500.0,0.0001798,2]
[358027820,1744655439355,-500.0,0.0001798,2]
[358027822,1744655439364,-500.0,0.0001798,2]
[358027824,1744655439374,-500.0,0.0001798,2]
[358027826,1744655439384,-500.0,0.0001798,2]
[358027828,1744655439393,-500.0,0.0001798,2]
[358027830,1744655439403,-500.0,0.0001798,2]
[358027832,1744655439412,-500.0,0.0001798,2]
[358027833,1744655439421,-500.0,0.0001798,2]
[358027834,1744655439430,-500.0,0.0001798,2]
[358027836,1744655439440,-500.0,0.0001798,2]
[358027838,1744655439448,-228.74032668,0.0001798,2]
[358027839,1744655439458,-500.0,0.0001798,2]
[358027841,1744655439468,-500.0,0.0001798,2]
[358027842,1744655439477,-500.0,0.0001798,2]
[358027844,1744655439487,-500.0,0.0001798,2]
[358027846,1744655439496,-500.0,0.0001798,2]
[358027847,1744655439505,-500.0,0.0001798,2]
[358027848,1744655439515,-500.0,0.0001798,2]
[358027849,1744655439524,-89325.86,0.0001798,2]
[358027850,1744655439534,-500.0,0.0001798,2]
[358027851,1744655439543,-500.0,0.0001798,2]
[358027852,1744655439552,-500.0,0.0001798,2]
[358027853,1744655439562,-500.0,0.0001798,2]
[358027854,1744655439571,-500.0,0.0001798,2]
[358027855,1744655439580,-201.82138493,0.0001798,2]
[358027856,1744655439589,-500.0,0.0001798,2]
[358027857,1744655439599,-500.0,0.0001798,2]
[358027858,1744655439795,-2159.7,0.0001798,2]
[358027859,1744655439805,-679.18,0.0001798,2]
[358027860,1744655439815,-500.0,0.0001798,2]
[358027861,1744655439825,-500.0,0.0001798,2]
[358027862,1744655439834,-500.0,0.0001798,2]
[358027863,1744655439844,-500.0,0.0001798,2]
[358027864,1744655439854,-2112.17,0.0001798,2]
[358027865,1744655439864,-1313.51,0.0001798,2]
[358027866,1744655439874,-1049.77,0.0001798,2]
[358027867,1744655439883,-1103.28,0.0001798,2]
[358027868,1744655439894,-541.71,0.0001798,2]
[358027869,1744655439903,-500.0,0.0001798,2]
[358027870,1744655439913,-500.0,0.0001798,2]
[358027871,1744655439923,-500.0,0.0001798,2]
[358027872,1744655439933,-500.0,0.0001798,2]
[358027873,1744655439942,-4665.18,0.0001798,2]
[358027874,1744655439952,-504.58,0.0001798,2]
[358027875,1744655439961,-500.0,0.0001798,2]
[358027876,1744655439971,-1155.51,0.0001798,2]
[358027877,1744655439982,-500.0,0.0001798,2]
[358027878,1744655439992,-500.0,0.0001798,2]
[358027879,1744655440002,-500.0,0.0001798,2]
[358027880,1744655440011,-2370.84,0.0001798,2]
[358027881,1744655440020,-500.0,0.0001798,2]
[358027882,1744655440029,-500.0,0.0001798,2]
[358027883,1744655440039,-500.0,0.0001798,2]
[358027884,1744655440048,-294.14743454,0.00017981,2]
[358027885,1744655440057,-507.84848916,0.00017981,2]
[358027886,1744655440067,-531.07391024,0.00017981,2]
[358027887,1744655440076,-500.0,0.00017981,2]
[358027888,1744655440086,-500.0,0.00017981,2]
[358027889,1744655440095,-500.0,0.00017981,2]
[358027890,1744655440105,-500.0,0.00017981,2]
[358027891,1744655440116,-500.0,0.00017981,2]
[358027892,1744655440129,-500.0,0.00017981,2]
[358027893,1744655440139,-344.10063723,0.00017981,2]
[358027894,1744655440150,-500.0,0.00017981,2]
[358027895,1744655440159,-500.0,0.00017981,2]
[358027896,1744655440170,-500.0,0.00017981,2]
[358027897,1744655440180,-500.0,0.00017981,2]
[358027898,1744655440190,-500.0,0.00017981,2]
[358027899,1744655440201,-500.0,0.00017981,2]
[358027900,1744655440211,-450.27903212,0.00017981,2]
[358027901,1744655440220,-500.0,0.00017981,2]
[358027902,1744655440230,-500.0,0.00017981,2]
[358027903,1744655440239,-500.0,0.00017981,2]
[358027904,1744655440250,-500.0,0.00017981,2]
[358027905,1744655440259,-500.0,0.00017981,2]
[358027906,1744655440269,-265.74,0.00017981,2]
[358027907,1744655440279,-447.09277075,0.00017981,2]
[358027908,1744655440289,-500.0,0.00017981,2]
[358027909,1744655440299,-500.0,0.00017981,2]
[358027910,1744655440316,-500.0,0.00017981,2]
[358027911,1744655440326,-569.42255477,0.00017981,2]
[358027912,1744655440341,-500.0,0.00017981,2]
[358027913,1744655440351,-610.42889467,0.00017981,2]
[358027914,1744655440361,-500.0,0.00017981,2]
[358027915,1744655440373,-500.0,0.00017981,2]
[358027916,1744655440383,-515.12422268,0.00017981,2]
[358027917,1744655440393,-500.0,0.00017981,2]
[358027918,1744655440403,-500.0,0.00017981,2]
[358027919,1744655440413,-500.0,0.00017981,2]
[358027920,1744655440422,-500.0,0.00017981,2]
[358027921,1744655440432,-525.47567986,0.00017981,2]
[358027922,1744655440441,-520.00437504,0.00017981,2]
[358027923,1744655440451,-510.49973945,0.00017981,2]
[358027924,1744655440461,-316.24995362,0.00017981,2]
[358027925,1744655440471,-500.0,0.00017981,2]
[358027926,1744655440481,-500.0,0.00017981,2]
[358027927,1744655440491,-500.0,0.00017981,2]
[358027928,1744655440501,-500.0,0.00017981,2]
[358027929,1744655440511,-500.0,0.00017981,2]
[358027930,1744655440520,-500.0,0.00017981,2]
[358027931,1744655440530,-500.0,0.00017981,2]
[358027932,1744655440540,-500.0,0.00017981,2]
[358027933,1744655440550,-500.0,0.00017981,2]
[358027934,1744655440560,-500.0,0.00017981,2]
[358027935,1744655440570,-500.0,0.00017981,2]
[358027937,1744655440580,-295.93970999,0.00017981,2]
[358027939,1744655440590,-500.0,0.00017981,2]
[358027941,1744655440601,-546.65487404,0.00017981,2]
[358027942,1744655440614,-500.0,0.00017981,2]
[358027944,1744655440625,-500.0,0.00017981,2]
[358027946,1744655440634,-500.0,0.00017981,2]
[358027948,1744655440647,-1000.0,0.00017981,2]
[358027950,1744655440656,-500.0,0.00017981,2]
[358027951,1744655440666,-500.0,0.00017981,2]
[358027952,1744655440676,-500.0,0.00017981,2]
[358027953,1744655440686,-500.0,0.00017981,2]
[358027954,1744655440697,-873.43,0.00017981,2]
[358027955,1744655440707,-500.0,0.00017981,2]
[358027956,1744655440716,-500.0,0.00017981,2]
[358027957,1744655440726,-500.0,0.00017981,2]
[358027958,1744655440736,-500.0,0.00017981,2]
[358027959,1744655440747,-500.0,0.00017981,2]
[358027960,1744655440756,-500.0,0.00017981,2]
[358027961,1744655440766,-500.0,0.00017981,2]
[358027962,1744655440776,-500.0,0.00017981,2]
[358027963,1744655440786,-500.0,0.00017981,2]
[358027964,1744655440796,-500.0,0.00017981,2]
[358027965,1744655440805,-500.0,0.00017981,2]
[358027966,1744655440815,-537.77046995,0.00017981,2]
[358027967,1744655440825,-500.0,0.00017981,2]
[358027968,1744655440835,-500.0,0.00017981,2]
[358027969,1744655440844,-500.0,0.00017981,2]
[358027970,1744655440854,-500.0,0.00017981,2]
[358027971,1744655440864,-500.0,0.00017981,2]
[358027972,1744655440874,-500.0,0.00017981,2]
[358027973,1744655440883,-500.0,0.00017981,2]
[358027974,1744655440893,-483.93465922,0.00017981,2]